bitfinex/quotes_SOLUSD_20250528
["timestamp","ask_amount","ask_price","bid_price","bid_amount"]
[1748396142659,5.67504681,176.21,176.19,15.93630471]
[1748396143765,5.67472477,176.22,176.19,15.93630471]
[1748396144870,35.79715827,176.23,176.19,15.93630471]
[1748396145864,35.79715827,176.23,176.14,5.67720964]
[1748396145865,15.93630471,176.2,176.16,15.93630471]
[1748396146066,15.93630471,176.19,176.15,15.93630471]
[1748396146277,15.93630471,176.21,176.16,15.93630471]
[1748396147668,15.93630471,176.2,176.16,15.93630471]
[1748396147887,15.93630471,176.2,176.15,15.93630471]
[1748396148358,15.93630471,176.19,176.13,10.37161003]
[1748396148558,15.93630471,176.16,176.13,10.37161003]
[1748396148864,15.93630471,176.15,176.13,10.37161003]
[1748396149054,5.67730214,176.14,176.13,10.37161003]
[1748396151069,5.67697984,176.15,176.13,10.37161003]
[1748396151977,5.67697984,176.15,176.13,26.30791474]
[1748396152668,5.67697984,176.15,176.13,10.37161003]
[1748396152861,5.67697984,176.15,176.13,26.30791474]
[1748396153987,15.93630471,176.15,176.13,10.37161003]
[1748396155063,15.93630471,176.15,176.12,9.04]
[1748396155468,15.93630471,176.14,176.12,9.04]
[1748396155776,15.93630471,176.13,176.12,9.04]
[1748396156079,21.61392919,176.13,176.12,9.04]
[1748396156662,35.80799039,176.13,176.07,35.04]
[1748396156862,35.80799039,176.13,176.08,15.93630471]
[1748396159061,35.80799039,176.13,176.09,15.93630471]
[1748396161482,14.1940612,176.13,176.09,15.93630471]
[1748396161687,5.67730214,176.14,176.11,15.93630471]
[1748396162473,5.67730214,176.14,176.1,15.93630471]
[1748396164893,19.8705575,176.14,176.1,15.93630471]
[1748396165056,5.67730214,176.14,176.13,15.93630471]
[1748396165379,19.86782516,176.17,176.13,15.93630471]
[1748396165586,19.86782516,176.17,176.14,15.93630471]
[1748396166091,5.67633535,176.17,176.15,15.93630471]
[1748396166267,5.67633535,176.17,176.16,15.93630471]
[1748396167490,14.18890542,176.2,176.16,15.93630471]
[1748396167869,30.12521013,176.2,176.16,15.93630471]
[1748396168066,14.18890542,176.2,176.16,15.93630471]
[1748396169161,14.18890542,176.2,176.18,15.93630471]
[1748396169485,19.86427431,176.2,176.17,15.93630471]
[1748396169982,19.86427431,176.2,176.16,15.93630471]
[1748396172093,14.18890542,176.2,176.17,15.93630471]
[1748396173284,19.86427431,176.2,176.17,15.93630471]
[1748396177796,14.18890542,176.2,176.17,15.93630471]
[1748396178996,14.18890542,176.2,176.16,15.93630471]
[1748396178997,35.80057902,176.2,176.16,15.93630471]
[1748396179375,19.86427431,176.2,176.17,15.93630471]
[1748396180405,19.86427431,176.2,176.18,15.93630471]
[1748396180967,14.18890542,176.2,176.17,15.93630471]
[1748396182484,5.67408079,176.24,176.19,15.93630471]
[1748396182796,5.67408079,176.24,176.23,15.93630471]
[1748396183102,5.67279328,176.28,176.23,50.95630471]
[1748396183299,5.67279328,176.28,176.27,15.93630471]
[1748396183527,40.45150635,176.32,176.27,15.93630471]
[1748396183691,40.45150635,176.32,176.29,15.93630471]
[1748396184004,70.56657694,176.32,176.28,15.93630471]
[1748396184989,70.56657694,176.32,176.23,124.02]
[1748396184990,15.93630471,176.31,176.26,15.93630471]
[1748396185588,70.56657694,176.32,176.28,15.93630471]
[1748396186705,98.9241087,176.32,176.27,15.93630471]
[1748396188601,15.93630471,176.31,176.26,15.93630471]
[1748396189986,15.93630471,176.3,176.25,15.93630471]
[1748396190787,19.85365022,176.29,176.25,15.93630471]
[1748396191402,35.78995493,176.29,176.25,15.93630471]
[1748396192393,19.85365022,176.29,176.25,15.93630471]
[1748396193005,64.1523124,176.29,176.24,15.93630471]
[1748396193304,15.93630471,176.28,176.23,50.95630471]
[1748396193688,15.93630471,176.28,176.23,24.95630471]
[1748396194407,19.85590286,176.27,176.24,15.93630471]
[1748396196816,19.85590286,176.27,176.23,9.02]
[1748396197020,15.93630471,176.24,176.23,9.02]
[1748396197314,15.93630471,176.24,176.18,24.95630471]
[1748396197508,15.93630471,176.23,176.18,113.95630471]
[1748396198192,19.8615367,176.22,176.18,113.95630471]
[1748396201218,15.93630471,176.21,176.18,9.02]
[1748396201531,15.93630471,176.19,176.18,9.02]
[1748396201695,15.93630471,176.2,176.18,9.02]
[1748396202721,19.8615367,176.22,176.18,9.02]
[1748396203031,35.79784141,176.22,176.18,9.02]
[1748396206519,19.8615367,176.22,176.2,15.93630471]
[1748396206700,5.67472477,176.22,176.21,15.93630471]
[1748396208237,19.85860602,176.25,176.21,15.93630471]
[1748396210616,19.85860602,176.25,176.23,15.93630471]
[1748396210936,19.85860602,176.25,176.24,15.93630471]
[1748396211338,19.85860602,176.25,176.23,15.93630471]
[1748396212708,14.18484716,176.25,176.23,15.93630471]
[1748396213236,14.18484716,176.25,176.24,15.93630471]
[1748396213623,14.18484716,176.25,176.23,15.93630471]
[1748396215634,5.67343696,176.26,176.23,15.93630471]
[1748396217437,5.67343696,176.26,176.24,15.93630471]
[1748396217739,5.67343696,176.26,176.25,15.93630471]
[1748396217947,5.67343696,176.26,176.24,15.93630471]
[1748396218130,15.93630471,176.25,176.21,89.0]
[1748396218330,15.93630471,176.23,176.19,15.93630471]
[1748396218624,15.93630471,176.23,176.18,139.95630471]
[1748396219013,15.93630471,176.23,176.18,124.02]
[1748396219211,15.93630471,176.21,176.18,35.02]
[1748396219521,5.67536889,176.2,176.18,9.02]
[1748396220341,15.93630471,176.19,176.18,9.02]
[1748396220854,15.93630471,176.19,176.13,9.02]
[1748396221024,15.93630471,176.16,176.13,9.02]
[1748396221418,15.93630471,176.15,176.13,9.02]
[1748396222027,82.98063562,176.2,176.13,9.02]
[1748396222028,15.93630471,176.14,176.13,9.02]
[1748396222348,15.93630471,176.15,176.13,9.02]
[1748396222558,15.93630471,176.16,176.13,9.02]
[1748396223833,5.67665758,176.16,176.15,15.93630471]
[1748396224023,34.76,176.19,176.15,15.93630471]
[1748396224554,15.93630471,176.18,176.13,50.95630471]
[1748396226066,5.67633535,176.17,176.13,50.95630471]
[1748396227453,5.67633535,176.17,176.14,15.93630471]
[1748396227650,5.67633535,176.17,176.13,35.02]
[1748396227956,5.67633535,176.17,176.14,15.93630471]
[1748396228929,5.67633535,176.17,176.15,15.93630471]
[1748396229541,35.80122325,176.19,176.15,15.93630471]
[1748396231249,35.80122325,176.19,176.14,15.93630471]
[1748396231663,35.80122325,176.19,176.13,124.02]
[1748396231959,35.80122325,176.19,176.15,15.93630471]
[1748396232959,19.86491854,176.19,176.15,15.93630471]
[1748396234259,35.80122325,176.19,176.15,15.93630471]
[1748396238237,35.80122325,176.19,176.13,98.02]
[1748396238238,5.67569101,176.19,176.16,15.93630471]
[1748396239066,5.67569101,176.19,176.15,9.02]
[1748396239239,5.67569101,176.19,176.15,24.95630471]
[1748396240455,35.80122325,176.19,176.15,24.95630471]
[1748396240961,35.80122325,176.19,176.15,9.02]
[1748396240962,15.93630471,176.18,176.15,9.02]
[1748396241263,15.93630471,176.17,176.15,9.02]
[1748396241649,15.93630471,176.16,176.15,9.02]
[1748396241970,15.93630471,176.16,176.1,98.02]
[1748396242257,15.93630471,176.16,176.07,19.19256272]
[1748396242258,15.93630471,176.11,176.07,19.19256272]
[1748396242461,21.61554142,176.08,176.07,19.19256272]
[1748396243863,21.61554142,176.08,176.07,9.02]
[1748396245273,21.61554142,176.08,176.02,9.02]
[1748396245648,56.37554142,176.08,176.02,9.02]
[1748396245855,15.93630471,176.07,176.03,15.93630471]
[1748396246871,15.93630471,176.07,176.02,24.95630471]
[1748396246872,5.67988185,176.06,176.02,24.95630471]
[1748396247052,21.61618656,176.06,176.02,24.95630471]
[1748396249462,5.67988185,176.06,176.02,24.95630471]
[1748396251049,5.67988185,176.06,176.03,15.93630471]
[1748396252292,5.67955926,176.07,176.03,15.93630471]
[1748396253978,21.61586397,176.07,176.03,15.93630471]
[1748396255293,35.81476213,176.07,176.02,24.95630471]
[1748396255472,15.93630471,176.06,176.02,24.95630471]
[1748396255871,35.81476213,176.07,176.02,24.95630471]
[1748396256301,35.81476213,176.07,176.02,9.02]
[1748396256611,5.68117259,176.02,175.99,89.0]
[1748396256787,21.6174773,176.02,175.98,9.02]
[1748396257580,15.93630471,176.01,175.98,9.02]
[1748396257871,19.88410407,176.02,175.98,24.95630471]
[1748396258205,19.88410407,176.02,175.98,9.02]
[1748396258385,19.88410407,176.02,175.98,24.95630471]
[1748396258975,14.20293148,176.02,175.98,24.95630471]
[1748396260497,21.61715456,176.03,175.98,24.95630471]
[1748396261268,5.68084985,176.03,176.01,15.93630471]
[1748396261673,5.68061333,176.04,176.02,15.93630471]
[1748396261881,5.68061333,176.04,175.98,98.02]
[1748396261882,5.68061333,176.04,176.03,15.93630471]
[1748396262284,5.68061333,176.04,176.02,15.93630471]
[1748396262927,5.67988185,176.06,176.02,15.93630471]
[1748396263983,5.67988185,176.06,176.04,15.93630471]
[1748396264315,34.78,176.09,176.05,15.93630471]
[1748396264608,50.71630471,176.09,176.05,15.93630471]
[1748396266186,5.67923671,176.08,176.05,15.93630471]
[1748396266384,5.67923671,176.08,176.06,15.93630471]
[1748396266609,5.67923671,176.08,176.07,15.93630471]
[1748396267294,5.67923671,176.08,176.05,15.93630471]
[1748396269211,5.67923671,176.08,176.06,15.93630471]
[1748396270726,35.81268671,176.09,176.05,15.93630471]
[1748396272723,14.19746781,176.09,176.05,15.93630471]
[1748396273660,5.6785917,176.1,176.08,15.93630471]
[1748396273940,5.6785917,176.1,176.04,9.02]
[1748396273941,19.86992429,176.15,176.09,15.93630471]
[1748396274243,19.86992429,176.15,176.11,15.93630471]
[1748396274703,15.93630471,176.14,176.1,15.93630471]
[1748396274899,15.93630471,176.14,176.09,15.93630471]
[1748396275837,5.67762448,176.13,176.09,15.93630471]
[1748396277709,19.86992429,176.15,176.11,15.93630471]
[1748396278028,19.86992429,176.15,176.12,15.93630471]
[1748396278433,5.67697984,176.15,176.14,15.93630471]
[1748396279717,5.67633535,176.17,176.14,15.93630471]
[1748396280957,5.67633535,176.17,176.15,15.93630471]
[1748396281536,5.67633535,176.17,176.16,15.93630471]
[1748396281713,5.67569101,176.19,176.16,15.93630471]
[1748396282113,5.67569101,176.19,176.17,15.93630471]
[1748396282509,5.67569101,176.19,176.16,15.93630471]
[1748396282837,15.93630471,176.18,176.13,15.93630471]
[1748396283339,19.86491854,176.19,176.15,15.93630471]
[1748396283934,14.18922753,176.19,176.15,15.93630471]
[1748396284138,14.18922753,176.19,176.16,15.93630471]
[1748396285537,5.67536889,176.2,176.18,15.93630471]
[1748396286242,19.86379113,176.2,176.17,15.93630471]
[1748396286619,19.86379113,176.2,176.16,15.93630471]
[1748396287522,19.86379113,176.2,176.17,15.93630471]
[1748396288236,19.86379113,176.2,176.13,26.0]
[1748396288432,19.86379113,176.2,176.16,15.93630471]
[1748396288675,19.86379113,176.2,176.17,15.93630471]
[1748396288936,19.86379113,176.2,176.18,15.93630471]
[1748396289319,19.86379113,176.2,176.17,15.93630471]
[1748396289943,5.67472477,176.22,176.18,15.93630471]
[1748396290248,5.67472477,176.22,176.2,15.93630471]
[1748396290443,5.67472477,176.22,176.19,15.93630471]
[1748396291533,31.67472477,176.22,176.19,15.93630471]
[1748396292950,45.8615367,176.22,176.18,15.93630471]
[1748396293355,45.8615367,176.22,176.19,15.93630471]
[1748396293568,15.93630471,176.2,176.16,98.02]
[1748396293768,15.93630471,176.18,176.16,9.02]
[1748396294252,5.67633535,176.17,176.16,9.02]
[1748396294548,21.61264006,176.17,176.16,9.02]
[1748396294849,35.80347845,176.17,176.13,15.93630471]
[1748396296844,14.19083839,176.17,176.13,15.93630471]
[1748396297238,14.19083839,176.17,176.14,15.93630471]
[1748396297841,5.67601316,176.18,176.15,15.93630471]
[1748396298249,5.67601316,176.18,176.14,15.93630471]
[1748396298663,5.67601316,176.18,176.17,15.93630471]
[1748396298831,34.74,176.21,176.17,15.93630471]
[1748396299148,26.0,176.21,176.18,15.93630471]
[1748396299450,34.74,176.23,176.18,15.93630471]
[1748396299451,15.93630471,176.23,176.18,15.93630471]
[1748396299654,50.67630471,176.23,176.18,15.93630471]
[1748396299842,5.67504681,176.21,176.18,15.93630471]
[1748396300051,5.67504681,176.21,176.13,104.93630471]
[1748396300249,5.67504681,176.21,176.18,15.93630471]
[1748396300566,19.86266385,176.21,176.17,15.93630471]
[1748396300747,35.79896856,176.21,176.17,15.93630471]
[1748396300952,19.86266385,176.21,176.17,15.93630471]
[1748396302038,5.67504681,176.21,176.18,15.93630471]
[1748396302243,5.67504681,176.21,176.19,15.93630471]
[1748396303272,5.67472477,176.22,176.19,15.93630471]
[1748396304545,5.67472477,176.22,176.2,15.93630471]
[1748396305166,5.67343696,176.26,176.21,15.93630471]
[1748396305346,14.18324999,176.27,176.23,15.93630471]
[1748396305347,48.92324999,176.27,176.23,15.93630471]
[1748396305746,30.1195547,176.27,176.23,15.93630471]
[1748396306470,30.1195547,176.27,176.22,15.93630471]
[1748396307271,15.93630471,176.25,176.2,15.93630471]
[1748396308889,19.85928278,176.24,176.2,15.93630471]
[1748396309187,19.85928278,176.24,176.21,15.93630471]
[1748396309367,5.67408079,176.24,176.23,15.93630471]
[1748396311086,5.67343696,176.26,176.23,15.93630471]
[1748396311777,5.67343696,176.26,176.25,15.93630471]
[1748396313189,5.67279328,176.28,176.25,15.93630471]
[1748396314081,5.67279328,176.28,176.26,15.93630471]
[1748396315278,5.67247149,176.29,176.26,15.93630471]
[1748396316461,19.85313885,176.3,176.27,15.93630471]
[1748396318705,14.18098911,176.3,176.27,15.93630471]
[1748396320279,14.18098911,176.3,176.26,15.93630471]
[1748396320890,35.78944356,176.3,176.25,15.93630471]
[1748396321090,15.93630471,176.29,176.24,15.93630471]
[1748396321496,70.50944356,176.3,176.25,15.93630471]
[1748396321904,70.50944356,176.3,176.26,15.93630471]
[1748396322504,70.50944356,176.3,176.23,98.0]
[1748396322803,70.50944356,176.3,176.25,15.93630471]
[1748396322984,35.78944356,176.3,176.26,15.93630471]
[1748396323401,19.85313885,176.3,176.26,15.93630471]
[1748396323785,35.78944356,176.3,176.26,15.93630471]
[1748396324604,19.85313885,176.3,176.23,9.0]
[1748396324915,19.85313885,176.3,176.27,15.93630471]
[1748396327007,14.18098911,176.3,176.27,15.93630471]
[1748396329091,14.18098911,176.3,176.26,15.93630471]
[1748396330407,30.11729382,176.3,176.26,15.93630471]
[1748396330807,30.11729382,176.3,176.26,9.0]
[1748396331007,15.93630471,176.27,176.26,9.0]
[1748396331206,21.60941981,176.27,176.26,9.0]
[1748396332011,5.6731151,176.27,176.26,9.0]
[1748396332216,21.60941981,176.27,176.26,9.0]
[1748396335720,21.60941981,176.27,176.23,15.93630471]
[1748396338529,15.93630471,176.26,176.22,9.0]
[1748396338819,15.93630471,176.23,176.22,9.0]
[1748396339117,15.93630471,176.23,176.17,9.0]
[1748396339418,15.93630471,176.21,176.17,9.0]
[1748396340626,5.67536889,176.2,176.17,9.0]
[1748396341704,5.67536889,176.2,176.17,24.93630471]
[1748396343521,5.67472477,176.22,176.19,15.93630471]
[1748396343828,15.93630471,176.2,176.17,9.0]
[1748396344525,15.93630471,176.21,176.17,9.0]
[1748396345024,35.79784141,176.22,176.18,15.93630471]
[1748396346421,15.93630471,176.21,176.17,9.0]
[1748396346924,35.79784141,176.22,176.17,24.93630471]
[1748396351326,26.14216157,176.28,176.21,15.93630471]
[1748396351327,19.85702938,176.26,176.21,15.93630471]
[1748396351524,19.85702938,176.26,176.23,15.93630471]
[1748396352412,14.18359242,176.26,176.22,15.93630471]
[1748396354424,19.85702938,176.26,176.22,15.93630471]
[1748396355634,0.14216157,176.34,176.22,15.93630471]
[1748396355635,5.67247149,176.29,176.25,15.93630471]
[1748396355814,5.67247149,176.29,176.28,15.93630471]
[1748396356131,5.67247149,176.29,176.27,15.93630471]
[1748396357724,5.67182803,176.31,176.27,15.93630471]
[1748396358224,5.67182803,176.31,176.28,15.93630471]
[1748396359030,35.78770281,176.31,176.26,15.93630471]
[1748396360438,15.93630471,176.3,176.25,15.93630471]
[1748396360738,15.93630471,176.29,176.24,15.93630471]
[1748396361104,15.93630471,176.3,176.25,15.93630471]
[1748396361406,15.93630471,176.3,176.26,15.93630471]
[1748396362212,5.67247149,176.29,176.26,15.93630471]
[1748396362439,5.67247149,176.29,176.23,98.0]
[1748396362617,35.78995493,176.29,176.23,98.0]
[1748396362823,15.93630471,176.28,176.23,113.93630471]
[1748396363445,35.78995493,176.29,176.23,113.93630471]
[1748396364435,35.78995493,176.29,176.24,15.93630471]
[1748396364822,70.48995493,176.29,176.24,15.93630471]
[1748396365034,70.48995493,176.29,176.23,9.0]
[1748396365035,15.93630471,176.27,176.23,9.0]
[1748396365616,15.93630471,176.28,176.23,24.93630471]
[1748396366233,19.85590286,176.27,176.23,24.93630471]
[1748396367819,15.93630471,176.26,176.23,9.0]
[1748396368215,5.67375886,176.25,176.23,9.0]
[1748396378946,5.67375886,176.25,176.23,24.93630471]
[1748396381826,19.85590286,176.27,176.23,24.93630471]
[1748396383849,35.79220757,176.27,176.23,9.0]
[1748396385730,35.79558749,176.24,176.19,89.0]
[1748396385943,35.79558749,176.24,176.17,24.93630471]
[1748396385944,15.93630471,176.22,176.17,24.93630471]
[1748396387453,15.93630471,176.21,176.17,24.93630471]
[1748396387857,15.93630471,176.2,176.17,9.0]
[1748396388957,18.64964886,176.23,176.17,9.0]
[1748396389129,18.64964886,176.23,176.17,24.93630471]
[1748396389333,15.93630471,176.23,176.19,15.93630471]
[1748396389936,5.67472477,176.22,176.19,15.93630471]
[1748396390247,35.79784141,176.22,176.17,24.93630471]
[1748396393660,15.93630471,176.2,176.17,9.0]
[1748396394843,5.67569101,176.19,176.17,9.0]
[1748396395045,19.85846727,176.25,176.18,15.93630471]
[1748396395255,19.85846727,176.25,176.21,15.93630471]
[1748396395768,35.79477198,176.25,176.2,15.93630471]
[1748396400168,35.79477198,176.25,176.2,24.93630471]
[1748396400662,15.93630471,176.24,176.2,9.0]
[1748396401161,35.79477198,176.25,176.2,24.93630471]
[1748396402361,15.93630471,176.22,176.2,9.0]
[1748396402550,48.22726159,176.25,176.2,9.0]
[1748396402551,15.93630471,176.21,176.2,9.0]
[1748396403064,15.93630471,176.23,176.2,9.0]
[1748396404364,5.67472477,176.22,176.2,9.0]
[1748396404777,21.61102948,176.22,176.2,9.0]
[1748396406301,5.67472477,176.22,176.2,9.0]
[1748396406468,5.67472477,176.22,176.2,24.93630471]
[1748396408256,19.85928278,176.24,176.2,24.93630471]
[1748396409974,19.85928278,176.24,176.2,9.0]
[1748396410168,19.85928278,176.24,176.2,24.93630471]
[1748396411167,35.79558749,176.24,176.2,9.0]
[1748396411366,5.67472477,176.22,176.2,9.0]
[1748396411577,21.61102948,176.22,176.2,9.0]
[1748396415890,15.93630471,176.21,176.2,9.0]
[1748396417384,5.67536889,176.2,176.15,24.91630471]
[1748396417611,15.93630471,176.19,176.15,8.98]
[1748396417911,35.80009584,176.2,176.15,24.91630471]
[1748396423013,35.80009584,176.2,176.15,8.98]
[1748396423195,35.80009584,176.2,176.15,24.91630471]
[1748396426321,35.80009584,176.2,176.15,8.98]
[1748396426516,15.93630471,176.18,176.15,8.98]
[1748396427419,15.93630471,176.19,176.15,8.98]
[1748396427787,5.67633535,176.17,176.15,8.98]
[1748396428207,21.61264006,176.17,176.15,8.98]
[1748396428395,15.93630471,176.16,176.15,8.98]
[1748396429704,21.61296229,176.16,176.15,8.98]
[1748396433113,5.67665758,176.16,176.15,8.98]
[1748396434127,5.67665758,176.16,176.15,24.91630471]
[1748396434335,5.67633535,176.17,176.15,24.91630471]
[1748396434630,5.67633535,176.17,176.15,8.98]
[1748396436415,5.67633535,176.17,176.14,10.29584174]
[1748396436416,15.93630471,176.16,176.14,10.29584174]
[1748396436620,5.67633535,176.17,176.14,10.29584174]
[1748396437412,21.61264006,176.17,176.14,10.29584174]
[1748396437610,15.93630471,176.16,176.14,10.29584174]
[1748396438320,40.37633535,176.17,176.14,10.29584174]
[1748396438321,21.61328455,176.15,176.14,10.29584174]
[1748396438530,18.64964886,176.14,176.01,1.6611]
[1748396438713,120.11573262,176.15,176.01,1.6611]
[1748396438714,15.93630471,176.07,176.02,15.93630471]
[1748396438907,15.93630471,176.07,176.03,15.93630471]
[1748396439140,50.63630471,176.08,176.03,15.93630471]
[1748396439729,15.93630471,176.06,176.01,10.6411]
[1748396439912,15.93630471,176.06,176.02,15.93630471]
[1748396440117,15.93630471,176.07,176.02,15.93630471]
[1748396440429,21.61618656,176.06,176.02,15.93630471]
[1748396441008,35.8158912,176.06,176.01,10.6411]
[1748396441229,35.8158912,176.06,176.02,15.93630471]
[1748396442015,19.87958649,176.06,176.02,15.93630471]
[1748396442821,5.67988185,176.06,176.02,15.93630471]
[1748396443523,21.61618656,176.06,176.02,15.93630471]
[1748396443912,5.67988185,176.06,176.02,15.93630471]
[1748396445339,5.67988185,176.06,176.03,15.93630471]
[1748396446744,5.67988185,176.06,176.02,15.93630471]
[1748396447241,5.67988185,176.06,176.03,15.93630471]
[1748396447551,19.87903586,176.07,176.03,15.93630471]
[1748396447737,35.81534057,176.07,176.03,15.93630471]
[1748396448038,19.87903586,176.07,176.02,15.93630471]
[1748396448212,15.93630471,176.05,176.01,8.98]
[1748396448413,15.93630471,176.02,176.01,8.98]
[1748396449656,5.68149536,176.01,175.96,113.91630471]
[1748396449959,21.61780007,176.01,175.96,24.91630471]
[1748396450753,5.68149536,176.01,175.97,15.93630471]
[1748396455237,5.68214103,175.99,175.97,15.93630471]
[1748396460050,5.68214103,175.99,175.96,24.91630471]
[1748396460256,21.61844574,175.99,175.96,8.98]
[1748396460549,15.93630471,175.97,175.96,8.98]
[1748396460928,15.93630471,175.97,175.93,97.59630471]
[1748396461128,18.64964886,176.01,175.91,9.0]
[1748396461129,5.68375582,175.94,175.91,9.0]
[1748396462330,5.68375582,175.94,175.91,24.93630471]
[1748396462749,5.68375582,175.94,175.92,15.93630471]
[1748396463135,14.20927736,175.95,175.91,9.0]
[1748396463136,35.82901486,175.95,175.91,24.93630471]
[1748396464150,19.89271015,175.95,175.92,15.93630471]
[1748396466551,5.68343279,175.95,175.94,15.93630471]
[1748396467054,5.68343279,175.95,175.93,15.93630471]
[1748396468054,5.68343279,175.95,175.91,9.0]
[1748396468252,5.68343279,175.95,175.92,15.93630471]
[1748396468752,19.89201477,175.95,175.91,9.0]
[1748396469050,19.89201477,175.95,175.91,24.93630471]
[1748396469254,35.82831948,175.95,175.91,9.0]
[1748396469457,35.82831948,175.95,175.91,24.93630471]
[1748396469933,19.89201477,175.95,175.91,24.93630471]
[1748396470333,19.89201477,175.95,175.92,15.93630471]
[1748396470548,19.89201477,175.95,175.91,9.0]
[1748396470549,19.89201477,175.95,175.93,15.93630471]
[1748396470745,19.89201477,175.95,175.92,15.93630471]
[1748396470959,19.89201477,175.95,175.91,9.0]
[1748396471133,19.89201477,175.95,175.91,24.93630471]
[1748396472543,19.89201477,175.95,175.92,15.93630471]
[1748396476421,35.82831948,175.95,175.91,9.0]
[1748396476663,15.93630471,175.92,175.87,15.93630471]
[1748396476873,50.67630471,175.91,175.86,15.93630471]
[1748396477042,34.74,175.9,175.87,15.93630471]
[1748396477440,5.68537153,175.89,175.87,15.93630471]
[1748396477966,5.68537153,175.89,175.84,124.0]
[1748396478165,5.68537153,175.89,175.87,15.93630471]
[1748396479360,5.68537153,175.89,175.84,124.0]
[1748396479550,5.68537153,175.89,175.87,15.93630471]
[1748396480445,40.42515469,175.9,175.88,15.93630471]
[1748396480647,34.74,175.9,175.89,15.93630471]
[1748396481054,34.74,175.94,175.89,15.93630471]
[1748396481265,34.74,175.94,175.93,15.93630471]
[1748396482054,34.74,175.94,175.9,9.0]
[1748396482256,5.68407889,175.93,175.91,15.93630471]
[1748396483073,5.68343279,175.95,175.92,15.93630471]
[1748396483367,5.68343279,175.95,175.94,15.93630471]
[1748396484581,5.68343279,175.95,175.9,10.5296]
[1748396484751,5.68343279,175.95,175.94,15.93630471]
[1748396485755,5.68343279,175.95,175.9,10.5296]
[1748396485959,5.68343279,175.95,175.92,15.93630471]
[1748396486675,5.68310979,175.96,175.93,15.93630471]
[1748396487473,5.68310979,175.96,175.9,99.5296]
[1748396487681,19.89088428,175.96,175.92,15.93630471]
[1748396487875,35.82718899,175.96,175.91,15.93630471]
[1748396488054,35.82718899,175.96,175.92,15.93630471]
[1748396488253,19.89088428,175.96,175.92,15.93630471]
[1748396488893,19.89088428,175.96,175.93,15.93630471]
[1748396489093,5.68310979,175.96,175.95,15.93630471]
[1748396489470,5.68310979,175.96,175.94,15.93630471]
[1748396489863,5.68310979,175.96,175.95,15.93630471]
[1748396491180,14.20584803,175.99,175.95,15.93630471]
[1748396491423,5.68214103,175.99,175.97,15.93630471]
[1748396491691,5.68214103,175.99,175.91,5.68470221]
[1748396491692,5.68214103,175.99,175.96,15.93630471]
[1748396493785,5.68214103,175.99,175.98,15.93630471]
[1748396494086,5.6818289,176.0,175.98,15.93630471]
[1748396494383,5.68117259,176.02,175.99,15.93630471]
[1748396494572,5.68117259,176.02,176.01,15.93630471]
[1748396494775,5.68117259,176.02,176.0,15.93630471]
[1748396495070,5.68084985,176.03,176.0,15.93630471]
[1748396497281,5.68084985,176.03,176.02,15.93630471]
[1748396497982,5.68084985,176.03,176.01,15.93630471]
[1748396498380,5.68020448,176.05,176.01,15.93630471]
[1748396498576,5.68020448,176.05,176.02,15.93630471]
[1748396498781,5.68020448,176.05,176.04,15.93630471]
[1748396500586,54.61732848,176.08,176.04,15.93630471]
[1748396502280,70.55363319,176.08,176.04,15.93630471]
[1748396502621,5.67988185,176.06,176.03,15.93630471]
[1748396503207,19.87958649,176.06,176.04,15.93630471]
[1748396503407,19.87958649,176.06,176.05,15.93630471]
[1748396504300,14.19970464,176.06,176.05,15.93630471]
[1748396505316,14.19970464,176.06,176.03,15.93630471]
[1748396505699,48.91970464,176.06,176.03,15.93630471]
[1748396506211,48.91970464,176.06,176.04,15.93630471]
[1748396506616,54.59958649,176.06,176.04,15.93630471]
[1748396506995,19.87958649,176.06,176.04,15.93630471]
[1748396509229,19.87958649,176.06,176.02,98.0]
[1748396509396,19.87958649,176.06,176.04,15.93630471]
[1748396510833,19.87958649,176.06,176.02,98.0]
[1748396511126,35.8158912,176.06,176.02,113.93630471]
[1748396511313,19.87958649,176.06,176.03,15.93630471]
[1748396512026,19.87958649,176.06,176.04,15.93630471]
[1748396512231,5.67988185,176.06,176.05,15.93630471]
[1748396513008,14.19758079,176.09,176.05,15.93630471]
[1748396513219,14.19758079,176.09,176.06,15.93630471]
[1748396514099,19.87649498,176.09,176.06,15.93630471]
[1748396514704,19.87649498,176.09,176.02,124.0]
[1748396514916,5.67891419,176.09,176.08,15.93630471]
[1748396515715,5.67891419,176.09,176.07,15.93630471]
[1748396516111,19.87536208,176.1,176.07,15.93630471]
[1748396520027,14.19677038,176.1,176.07,15.93630471]
[1748396520525,30.13307509,176.1,176.06,15.93630471]
[1748396520909,14.19677038,176.1,176.07,15.93630471]
[1748396522213,14.19677038,176.1,176.06,15.93630471]
[1748396522214,30.13307509,176.1,176.06,15.93630471]
[1748396522418,14.19677038,176.1,176.07,15.93630471]
[1748396522628,14.19677038,176.1,176.08,15.93630471]